fUST/lending_fUST_20240917
["ID","MTS","AMOUNT","RATE_DAILY","PERIOD"]
[338365835,1726565923622,500.0,0.00026,120]
[338365836,1726565923880,500.0,0.00026,120]
[338365837,1726565924027,508.54070573,0.00026,120]
[338365838,1726565924810,500.0,0.00026,120]
[338365839,1726565925093,504.52225556,0.00026,120]
[338365840,1726565925359,500.0,0.00026,120]
[338365841,1726565925472,500.0,0.00026,120]
[338365842,1726565926427,5116.66,0.00026,120]
[338365843,1726565926596,2347.5,0.00026,120]
[338365844,1726565926688,2425.14,0.00026,120]
[338365845,1726565928260,1430.22,0.00026,120]
[338365846,1726565928304,500.0,0.00026,120]
[338365847,1726565928354,660.86,0.00026,120]
[338365848,1726565928977,500.0,0.00026,120]
[338365849,1726565929780,676.19,0.00026,120]
[338365850,1726565929949,411.4520728,0.00026,120]
[338365851,1726565930067,1852.06,0.00026,120]
[338365852,1726565930132,500.0,0.00026,120]
[338365853,1726565931080,3113.51,0.00026,120]
[338365854,1726565931821,500.0,0.00026,120]
[338365855,1726565932227,500.0,0.00026,120]
[338365856,1726565934034,505.70373554,0.00026,120]
[338365857,1726565935233,5321.56,0.00026,120]
[338365858,1726565935532,500.0,0.00026,120]
[338365859,1726565936333,500.0,0.00026,120]
[338365860,1726565937207,1813.32,0.00026,120]
[338365861,1726565937413,411.4520728,0.00026,120]
[338365862,1726565937660,3089.18,0.00026,120]
[338365863,1726565938321,413.17172659,0.00026,120]
[338365864,1726565938578,1261.38,0.00026,120]
[338365865,1726565938935,606.13,0.00026,120]
[338365866,1726565939024,1502.84,0.00026,120]
[338365867,1726565940209,500.0,0.00026,120]
[338365868,1726565941218,770.5,0.00026,120]
[338365869,1726565941486,613.59,0.00026,120]
[338365870,1726565941952,651.84,0.00026,120]
[338365871,1726565943789,3036.54,0.00026,120]
[338365872,1726565944668,11294.29,0.00026,120]
[338365873,1726565944714,500.0,0.00026,120]
[338365874,1726565945500,1057.09,0.00026,120]
[338365875,1726565946288,411.4520728,0.00026,120]
[338365876,1726565946792,500.0,0.00026,120]
[338365877,1726565946936,500.0,0.00026,120]
[338365878,1726565948367,1214.95,0.00026,120]
[338365879,1726565948424,500.0,0.00026,120]
[338365880,1726565948471,2152.12,0.00026,120]
[338365881,1726565950178,12461.94,0.00026,120]
[338365882,1726565950280,500.0,0.00026,120]
[338365883,1726565952268,2740.11,0.00026,120]
[338365884,1726565952982,500.00000001,0.00026,120]
[338365885,1726565953764,3667.38,0.00026,120]
[338365886,1726565953914,565.5041447,0.00026,120]
[338365888,1726565956908,1928.24,0.00026,120]
[338365889,1726565957014,3317.07,0.00026,120]
[338365890,1726565957327,500.0,0.00026,120]
[338365891,1726565957369,1267.19,0.00026,120]
[338365892,1726565957463,500.0,0.00026,120]
[338365893,1726565959178,500.0,0.00026,120]
[338365894,1726565959568,632.31,0.00026,120]
[338365895,1726565959614,525.77,0.00026,120]
[338365896,1726565961298,500.0,0.00026,120]
[338365897,1726565961522,500.0,0.00026,120]
[338365898,1726565962706,500.0,0.00026,120]
[338365899,1726565963660,500.0,0.00026,120]
[338365900,1726565964517,500.0,0.00026,120]
[338365901,1726565964835,500.0,0.00026,120]
[338365902,1726565967824,500.0,0.00026,120]
[338365903,1726565967912,500.0,0.00026,120]
[338365904,1726565968057,582.62,0.00026,120]
[338365905,1726565968286,729.6,0.00026,120]
[338365906,1726565968660,6368.69,0.00026,120]
[338365907,1726565969042,500.0,0.00026,120]
[338365908,1726565969439,500.0,0.00026,120]
[338365909,1726565970291,2459.34,0.00026,120]
[338365910,1726565972628,21794.54,0.00026,120]
[338365911,1726565972671,500.0,0.00026,120]
[338365912,1726565972955,500.0,0.00026,120]
[338365913,1726565973235,500.29797112,0.00026,120]
[338365914,1726565973685,1621.6,0.00026,120]
[338365915,1726565974027,500.0,0.00026,120]
[338365916,1726565974882,726.79,0.00026,120]
[338365917,1726565975123,757.05,0.00026,120]
[338365918,1726565975186,2427.99,0.00026,120]
[338365919,1726565975650,2749.8,0.00026,120]
[338365920,1726565975702,500.0,0.00026,120]
[338365921,1726565977112,500.0,0.00026,120]
[338365922,1726565978291,500.0,0.00026,120]
[338365923,1726565978464,500.0,0.00026,120]
[338365924,1726565979700,500.0,0.00026,120]
[338365925,1726565980497,811.1,0.00026,120]
[338365926,1726565981004,289.11626695,0.00026,120]
[338365927,1726565981187,4057.56,0.00026,120]
[338365928,1726565981233,2912.01,0.00026,120]
[338365929,1726565981344,1028.28,0.00026,120]
[338365930,1726565983099,511.35533155,0.00026,120]
[338365931,1726565983257,2793.29,0.00026,120]
[338365932,1726565983464,1242.21,0.00026,120]
[338365933,1726565983919,1540.8,0.00026,120]
[338365934,1726565984698,552.67,0.00026,120]
[338365935,1726565985182,500.0,0.00026,120]
[338365936,1726565985235,951.08,0.00026,120]
[338365937,1726565985560,500.0,0.00026,120]
[338365938,1726565986984,500.0,0.00026,120]
[338365939,1726565988537,1057.66,0.00026,120]
[338365940,1726565988923,500.0,0.00026,120]
[338365941,1726565991679,500.0,0.00026,120]
[338365942,1726565992869,660.76,0.00026,120]
[338365943,1726565993137,504.6,0.00026,120]
[338365944,1726565993311,500.0,0.00026,120]
[338365945,1726565993774,22581.82,0.00026,120]
[338365946,1726565994750,500.0,0.00026,120]
[338365947,1726565995027,500.0,0.00026,120]
[338365948,1726565995272,500.0,0.00026,120]
[338365949,1726565996537,500.0,0.00026,120]
[338365950,1726565996677,1510.91,0.00026,120]
[338365951,1726565996869,500.0,0.00026,120]
[338365952,1726565997662,500.0,0.00026,120]
[338365953,1726565997723,500.0,0.00026,120]
[338365954,1726565998335,500.0,0.00026,120]
[338365955,1726566000412,1167.63,0.00026,120]
[338365956,1726566001497,500.0,0.00026,120]
[338365957,1726566001716,500.0,0.00026,120]
[338365958,1726566002010,646.88,0.00026,120]
[338365959,1726566002440,500.0,0.00026,120]
[338365960,1726566002495,3369.92,0.00026,120]
[338365961,1726566004956,526.68,0.00026,120]
[338365962,1726566005021,500.0,0.00026,120]
[338365963,1726566005842,500.0,0.00026,120]
[338365964,1726566006777,500.0,0.00026,120]
[338365965,1726566007270,500.0,0.00026,120]
[338365966,1726566008080,500.0,0.00026,120]
[338365968,1726566011452,1074.87,0.00026,120]
[338365969,1726566012539,971.44,0.00026,120]
[338365970,1726566013628,500.0,0.00026,120]
[338365971,1726566015503,500.0,0.00026,120]
[338365972,1726566015711,1083.02,0.00026,120]
[338365973,1726566016940,847.7,0.00026,120]
[338365974,1726566017093,1105.26,0.00026,120]
[338365975,1726566019088,631.78,0.00026,120]
[338365976,1726566019141,3747.72,0.00026,120]
[338365977,1726566019197,500.0,0.00026,120]
[338365978,1726566020052,500.0,0.00026,120]
[338365979,1726566021001,500.0,0.00026,120]
[338365980,1726566021233,21241.03,0.00026,120]
[338365981,1726566021782,500.0,0.00026,120]
[338365982,1726566022044,500.0,0.00026,120]
[338365983,1726566022201,500.0,0.00026,120]
[338365984,1726566022331,500.0,0.00026,120]
[338365985,1726566022609,500.0,0.00026,120]
[338365986,1726566022878,500.0,0.00026,120]
[338365987,1726566023135,166.10829697,0.00026,120]
[338365988,1726566023193,4598.1,0.00026,120]
[338365989,1726566023254,2242.05,0.00026,120]
[338365990,1726566023977,672.53,0.00026,120]
[338365991,1726566024056,501.42477107,0.00026,120]
[338365992,1726566025497,2344.49,0.00026,120]
[338365993,1726566027348,503.76259852,0.00026,120]
[338365994,1726566031751,500.0,0.00026,120]
[338365995,1726566031800,1207.78,0.00026,120]
[338365996,1726566032003,506.16215178,0.00026,120]
[338365997,1726566032120,1243.57,0.00026,120]
[338365998,1726566032182,501.00014693,0.00026,120]
[338365999,1726566032422,500.0,0.00026,120]
[338366000,1726566032668,500.0,0.00026,120]
[338366001,1726566033526,4136.31,0.00026,120]
[338366002,1726566033811,500.0,0.00026,120]
[338366003,1726566035015,511.62157789,0.00026,120]
[338366004,1726566036196,1314.03,0.00026,120]
[338366005,1726566038286,4214.67,0.00026,120]
[338366006,1726566040242,1018.26,0.00026,120]
[338366007,1726566040401,3220.77,0.00026,120]
[338366008,1726566040520,1625.48,0.00026,120]
[338366009,1726566041317,500.0,0.00026,120]
[338366010,1726566041701,1567.77,0.00026,120]
[338366011,1726566041769,500.0,0.00026,120]
[338366012,1726566042151,500.0,0.00026,120]
[338366013,1726566042307,1181.45,0.00026,120]
[338366014,1726566042627,429.47,0.00026,120]
[338366015,1726566044046,1368.32,0.00026,120]
[338366016,1726566044775,182.57761998,0.00026,120]
[338366017,1726566047798,959.22,0.00026,120]
[338366018,1726566048266,2983.78,0.00026,120]
[338366019,1726566048430,889.98,0.00026,120]
[338366020,1726566049818,500.0,0.00026,120]
[338366021,1726566050872,1165.0,0.00026,120]
[338366022,1726566051613,500.0,0.00026,120]
[338366024,1726566052607,2811.64,0.00026,120]
[338366025,1726566054751,500.0,0.00026,120]
[338366026,1726566054839,500.0,0.00026,120]
[338366027,1726566054986,500.0,0.00026,120]
[338366028,1726566055580,500.0,0.00026,120]
[338366029,1726566055949,3092.39,0.00026,120]
[338366030,1726566056243,3092.39,0.00026,120]
[338366031,1726566056492,3092.39,0.00026,120]
[338366032,1726566056544,500.0,0.00026,120]
[338366033,1726566056807,3092.39,0.00026,120]
[338366034,1726566056861,588.02,0.00026,120]
[338366035,1726566056963,500.0,0.00026,120]
[338366036,1726566057051,3092.39,0.00026,120]
[338366037,1726566057272,1273.96,0.00026,120]
[338366038,1726566057474,3092.39,0.00026,120]
[338366039,1726566057766,3092.39,0.00026,120]
[338366040,1726566057887,435.35225316,0.00026,120]
[338366041,1726566058138,3092.39,0.00026,120]
[338366042,1726566058410,3092.39,0.00026,120]
[338366043,1726566058658,3092.39,0.00026,120]
[338366044,1726566058714,500.0,0.00026,120]
[338366045,1726566058908,3092.39,0.00026,120]
[338366046,1726566059078,500.0,0.00026,120]
[338366047,1726566059248,3092.39,0.00026,120]
[338366048,1726566059451,3092.39,0.00026,120]
[338366049,1726566059736,3092.39,0.00026,120]
[338366050,1726566059910,1852.74,0.00026,120]
[338366051,1726566059993,3092.39,0.00026,120]
[338366052,1726566060298,3092.39,0.00026,120]
[338366053,1726566060822,3092.39,0.00026,120]
[338366054,1726566060916,3092.39,0.00026,120]
[338366055,1726566061467,3092.39,0.00026,120]
[338366056,1726566061630,1885.26,0.00026,120]
[338366057,1726566061682,3092.39,0.00026,120]
[338366058,1726566061823,500.0,0.00026,120]
[338366059,1726566061936,3092.39,0.00026,120]
[338366060,1726566062239,3092.39,0.00026,120]
[338366061,1726566062480,500.0,0.00026,120]
[338366062,1726566062531,3092.39,0.00026,120]
[338366063,1726566062894,3092.46636405,0.00026,120]
[338366064,1726566063056,500.0,0.00026,120]
[338366065,1726566063786,739.14,0.00026,120]
[338366066,1726566064127,500.0,0.00026,120]
[338366067,1726566064497,568.15,0.00026,120]
[338366068,1726566066341,6172.3,0.00026,120]
[338366069,1726566067396,3178.86,0.00026,120]
[338366070,1726566068023,3275.98,0.00026,120]
[338366071,1726566068088,500.0,0.00026,120]
[338366072,1726566068494,2474.65,0.00026,120]
[338366073,1726566068764,902.23,0.00026,120]
[338366074,1726566073463,500.0,0.00026,120]
[338366075,1726566073952,500.0,0.00026,120]
[338366076,1726566074688,959.38,0.00026,120]
[338366077,1726566076421,500.0,0.00026,120]
[338366078,1726566079381,500.0,0.00026,120]
[338366079,1726566080187,1756.68,0.00026,120]
[338366080,1726566081408,2337.53,0.00026,120]
[338366081,1726566083780,500.0,0.00026,120]
[338366083,1726566084159,500.0,0.00026,120]
[338366084,1726566085031,500.0,0.00026,120]
[338366085,1726566085093,766.45,0.00026,120]
[338366086,1726566086558,500.76478624,0.00026,120]
[338366087,1726566086664,664.88,0.00026,120]
[338366088,1726566086711,500.0,0.00026,120]
[338366089,1726566087129,2847.55,0.00026,120]
[338366090,1726566087711,1422.36,0.00026,120]
[338366091,1726566090174,500.0,0.00026,120]
[338366092,1726566090222,2299.7,0.00026,120]
[338366093,1726566090623,500.0,0.00026,120]
[338366094,1726566091177,1065.53,0.00026,120]
[338366095,1726566093592,498.58738367,0.00026,120]
[338366096,1726566094597,500.0,0.00026,120]
[338366097,1726566094988,500.0,0.00026,120]
[338366098,1726566095683,500.0,0.00026,120]
[338366099,1726566095794,2635.22,0.00026,120]
[338366100,1726566097590,500.27440821,0.00026,120]
[338366101,1726566098725,500.0,0.00026,120]
[338366102,1726566099419,500.0,0.00026,120]
[338366103,1726566099465,339.57582238,0.00026,120]
[338366104,1726566101559,500.0,0.00026,120]
[338366105,1726566101640,537.95563111,0.00026,120]
[338366106,1726566102091,653.79,0.00026,120]
[338366107,1726566103044,812.26,0.00026,120]
[338366108,1726566103142,500.0,0.00026,120]
[338366109,1726566103580,500.0,0.00026,120]
[338366110,1726566105285,500.0,0.00026,120]
[338366111,1726566106160,668.66,0.00026,120]
[338366112,1726566108536,919.82,0.00026,120]
[338366113,1726566110467,500.0,0.00026,120]
[338366114,1726566110664,500.0,0.00026,120]
[338366115,1726566111403,751.63,0.00026,120]
[338366116,1726566112557,21640.91,0.00026,120]
[338366117,1726566112795,539.68,0.00026,120]
[338366118,1726566114842,500.0,0.00026,120]
[338366119,1726566114939,500.0,0.00026,120]
[338366120,1726566115523,500.0,0.00026,120]
[338366121,1726566115571,500.0,0.00026,120]
[338366122,1726566115625,1952.64,0.00026,120]
[338366123,1726566115696,2474.38,0.00026,120]
[338366124,1726566115768,779.44,0.00026,120]
[338366125,1726566117427,1142.0,0.00026,120]
[338366127,1726566117824,500.98562357,0.00026,120]
[338366128,1726566118668,1581.06,0.00026,120]
[338366129,1726566118741,500.0,0.00026,120]
[338366130,1726566120076,500.0,0.00026,120]
[338366131,1726566120788,995.22,0.00026,120]
[338366132,1726566121217,500.0,0.00026,120]
[338366133,1726566121385,500.0,0.00026,120]
[338366134,1726566124885,4623.95,0.00026,120]
[338366135,1726566125168,2984.88,0.00026,120]
[338366136,1726566125361,819.03,0.00026,120]
[338366137,1726566125882,500.0,0.00026,120]
[338366138,1726566126010,500.0,0.00026,120]
[338366139,1726566126114,1379.85,0.00026,120]
[338366140,1726566129447,500.0,0.00026,120]
[338366141,1726566130164,500.0,0.00026,120]
[338366142,1726566130660,500.0,0.00026,120]
[338366143,1726566133338,947.63,0.00026,120]
[338366144,1726566133846,1984.98,0.00026,120]
[338366145,1726566135460,500.0,0.00026,120]
[338366146,1726566135578,1178.03,0.00026,120]
[338366147,1726566136742,2021.72,0.00026,120]
[338366148,1726566137264,500.0,0.00026,120]
[338366149,1726566137788,500.0,0.00026,120]
[338366150,1726566138466,500.0,0.00026,120]
[338366151,1726566139643,1665.07,0.00026,120]
[338366152,1726566139716,529.78,0.00026,120]
[338366153,1726566140961,500.0,0.00026,120]
[338366154,1726566141129,656.39,0.00026,120]
[338366155,1726566142082,1068.56,0.00026,120]
[338366156,1726566142262,500.0,0.00026,120]
[338366157,1726566143051,500.75042184,0.00026,120]
[338366158,1726566143114,953.98,0.00026,120]
[338366159,1726566144095,1876.44,0.00026,120]
[338366160,1726566144439,1043.4,0.00026,120]
[338366161,1726566144507,2856.96,0.00026,120]
[338366162,1726566147462,500.0,0.00026,120]
[338366163,1726566150115,500.0,0.00026,120]
[338366164,1726566150264,2438.01,0.00026,120]
[338366165,1726566151235,688.33,0.00026,120]
[338366166,1726566152054,500.0,0.00026,120]
[338366167,1726566152781,500.0,0.00026,120]
[338366168,1726566153221,1624.24,0.00026,120]
[338366169,1726566153392,1364.44,0.00026,120]
[338366170,1726566157871,500.0,0.00026,120]
[338366171,1726566159015,500.0,0.00026,120]
[338366179,1726566161005,4628.2,0.00026,120]
[338366182,1726566161485,502.86842851,0.00026,120]
[338366183,1726566161552,4331.61,0.00026,120]
[338366192,1726566163382,308.76899159,0.00026,120]
[338366193,1726566165099,500.0,0.00026,120]
[338366194,1726566167263,500.0,0.00026,120]
[338366195,1726566168196,500.0,0.00026,120]
[338366196,1726566168337,500.0,0.00026,120]
[338366197,1726566168792,500.0,0.00026,120]
[338366198,1726566170176,500.0,0.00026,120]
[338366199,1726566171600,1048.31,0.00026,120]
[338366200,1726566172570,501.8328162,0.00026,120]
[338366201,1726566172643,2145.43,0.00026,120]
[338366202,1726566172835,500.0,0.00026,120]
[338366203,1726566174462,500.0,0.00026,120]
[338366204,1726566175104,4141.63,0.00026,120]
[338366205,1726566175512,829.67,0.00026,120]
[338366206,1726566175810,793.52,0.00026,120]
[338366207,1726566175885,500.0,0.00026,120]
[338366208,1726566175994,500.0,0.00026,120]
[338366209,1726566179578,6932.02,0.00026,120]
[338366210,1726566180467,500.0,0.00026,120]
[338366211,1726566180907,727.05,0.00026,120]
[338366212,1726566181211,500.0,0.00026,120]
[338366213,1726566181460,500.0,0.00026,120]
[338366214,1726566181948,500.0,0.00026,120]
[338366215,1726566182875,500.0,0.00026,120]
[338366216,1726566183076,1375.58,0.00026,120]
[338366217,1726566183153,500.0,0.00026,120]
[338366218,1726566183720,992.08,0.00026,120]
[338366219,1726566184393,1469.65,0.00026,120]
[338366220,1726566184733,20886.43,0.00026,120]
[338366221,1726566188476,500.0,0.00026,120]
[338366222,1726566189537,565.75,0.00026,120]
[338366223,1726566190269,500.0,0.00026,120]
[338366224,1726566191400,500.0,0.00026,120]
[338366225,1726566192145,500.0,0.00026,120]
[338366226,1726566192869,2249.68,0.00026,120]
[338366227,1726566194108,500.0,0.00026,120]
[338366228,1726566194508,2790.68,0.00026,120]
[338366229,1726566194733,500.0,0.00026,120]
[338366230,1726566196221,11942.69,0.00026,120]
[338366231,1726566197177,1111.88,0.00026,120]
[338366232,1726566197337,500.0,0.00026,120]
[338366233,1726566198842,500.0,0.00026,120]
[338366234,1726566199231,500.0,0.00026,120]
[338366235,1726566202024,2045.33,0.00026,120]
[338366236,1726566202095,500.0,0.00026,120]
[338366237,1726566202657,500.0,0.00026,120]
[338366238,1726566205096,500.0,0.00026,120]
[338366239,1726566205488,500.0,0.00026,120]
[338366240,1726566206858,500.0,0.00026,120]
[338366241,1726566207120,500.0,0.00026,120]
[338366242,1726566207456,1772.96,0.00026,120]
[338366243,1726566208480,500.0,0.00026,120]
[338366244,1726566210139,500.0,0.00026,120]
[338366245,1726566210474,2246.8,0.00026,120]
[338366246,1726566211884,1540.21,0.00026,120]
[338366247,1726566214110,1021.91,0.00026,120]
[338366248,1726566215068,6103.33,0.00026,120]
[338366249,1726566215329,648.01,0.00026,120]
[338366250,1726566215554,10823.69,0.00026,120]
[338366251,1726566218764,500.0,0.00026,120]
[338366252,1726566218931,2332.62,0.00026,120]
[338366253,1726566220334,392.18152674,0.00026,120]
[338366254,1726566220751,2146.6,0.00026,120]
[338366255,1726566222875,1440.22,0.00026,120]
[338366256,1726566223851,500.0,0.00026,120]
[338366257,1726566225249,596.37074438,0.00026,120]
[338366258,1726566226232,500.0,0.00026,120]
[338366259,1726566227113,533.04,0.00026,120]
[338366260,1726566227506,500.0,0.00026,120]
[338366261,1726566228714,2518.5,0.00026,120]
[338366262,1726566229975,500.0,0.00026,120]
[338366263,1726566232083,1164.32,0.00026,120]
[338366264,1726566233384,600.95927513,0.00026,120]
[338366265,1726566235374,500.0,0.00026,120]
[338366266,1726566235505,500.0,0.00026,120]
[338366267,1726566236132,500.0,0.00026,120]
[338366268,1726566236485,500.0,0.00026,120]
[338366269,1726566237555,2694.49,0.00026,120]
[338366270,1726566238602,500.0,0.00026,120]
[338366271,1726566238737,924.44,0.00026,120]
[338366272,1726566239720,3086.58,0.00026,120]
[338366273,1726566239784,500.0,0.00026,120]
[338366274,1726566240373,227.93100719,0.00026,120]
[338366275,1726566242153,500.0,0.00026,120]
[338366276,1726566242201,500.0,0.00026,120]
[338366277,1726566242540,500.0,0.00026,120]
[338366278,1726566242616,2910.02,0.00026,120]
[338366279,1726566242791,500.0,0.00026,120]
[338366280,1726566243417,503.86,0.00026,120]
[338366281,1726566247317,500.0,0.00026,120]
[338366282,1726566248844,2326.83,0.00026,120]
[338366283,1726566250869,500.0,0.00026,120]
[338366284,1726566252294,3703.33,0.00026,120]
[338366285,1726566253078,3256.9,0.00026,120]
[338366286,1726566253568,500.0,0.00026,120]
[338366287,1726566253622,585.06,0.00026,120]
[338366288,1726566253675,699.2,0.00026,120]
[338366289,1726566254397,1303.93,0.00026,120]
[338366290,1726566254912,884.15,0.00026,120]
[338366291,1726566255928,1552.57,0.00026,120]
[338366292,1726566258096,500.0,0.00026,120]
[338366293,1726566258188,1775.54,0.00026,120]
[338366294,1726566261317,500.0,0.00026,120]
[338366295,1726566262460,1535.06,0.00026,120]
[338366296,1726566262754,230.34632038,0.00026,120]
[338366297,1726566263258,2887.39,0.00026,120]
[338366298,1726566264188,500.0,0.00026,120]
[338366299,1726566264761,500.0,0.00026,120]
[338366300,1726566265329,1014.26,0.00026,120]
[338366301,1726566265965,605.46,0.00026,120]
[338366302,1726566266835,3888.49,0.00026,120]
[338366303,1726566268612,500.0,0.00026,120]
[338366304,1726566268658,500.0,0.00026,120]
[338366305,1726566270052,750.51,0.00026,120]
[338366306,1726566270288,954.74,0.00026,120]
[338366307,1726566270573,954.74,0.00026,120]
[338366308,1726566270879,954.74,0.00026,120]
[338366309,1726566271050,525.84214122,0.00026,120]
[338366310,1726566271175,954.74,0.00026,120]
[338366311,1726566272032,954.74,0.00026,120]
[338366312,1726566272147,954.74,0.00026,120]
[338366313,1726566272310,1674.1,0.00026,120]
[338366314,1726566272368,954.74,0.00026,120]
[338366315,1726566272542,954.74,0.00026,120]
[338366316,1726566272757,954.74,0.00026,120]
[338366317,1726566272976,954.74,0.00026,120]
[338366318,1726566273218,954.74,0.00026,120]
[338366319,1726566273468,954.74,0.00026,120]
[338366320,1726566273733,954.74,0.00026,120]
[338366321,1726566274031,954.74,0.00026,120]
[338366322,1726566274281,954.74,0.00026,120]
[338366323,1726566274327,1190.45,0.00026,120]
[338366324,1726566274512,500.0,0.00026,120]
[338366325,1726566274569,954.74,0.00026,120]
[338366326,1726566274835,954.74,0.00026,120]
[338366327,1726566274965,3963.96,0.00026,120]
[338366328,1726566275107,954.74,0.00026,120]
[338366329,1726566275388,954.74,0.00026,120]
[338366330,1726566275649,954.74,0.00026,120]
[338366331,1726566276123,954.74,0.00026,120]
[338366332,1726566276214,954.74,0.00026,120]
[338366333,1726566276449,954.74,0.00026,120]
[338366334,1726566276784,954.84905036,0.00026,120]
[338366335,1726566277102,162.521938,0.00013699,2]
[338366336,1726566277329,633.23,0.00026,120]
[338366337,1726566278887,500.0,0.00026,120]
[338366338,1726566279976,500.0,0.00026,120]
[338366339,1726566283206,3224.88,0.00026,120]
[338366340,1726566283574,18585.9,0.00026,120]
[338366341,1726566284255,229.69160595,0.00026,120]
[338366342,1726566286074,1311.31,0.00026,120]
[338366343,1726566286521,3055.69,0.00026,120]
[338366344,1726566286727,500.0,0.00026,120]
[338366345,1726566290032,504.74,0.00026,120]
[338366346,1726566291734,3229.5,0.00026,120]
[338366347,1726566293884,2728.9,0.00026,120]
[338366348,1726566295907,305.65129473,0.00026,120]
[338366349,1726566296222,500.0,0.00026,120]
[338366350,1726566298020,500.0,0.00026,120]
[338366351,1726566298450,500.0,0.00026,120]
[338366352,1726566299780,2656.34,0.00026,120]
[338366353,1726566300094,500.0,0.00026,120]
[338366354,1726566300565,500.0,0.00026,120]
[338366355,1726566301855,4039.06,0.00026,120]
[338366356,1726566305018,500.0,0.00026,120]